bitfinex/quotes_BTCUSD_20240817
["timestamp","ask_amount","ask_price","bid_price","bid_amount"]
[1723924502308,2.15717569,59608.0,59607.0,0.0009075]
[1723924502515,2.33980731,59608.0,59607.0,0.0009075]
[1723924502723,2.32180731,59608.0,59607.0,0.0009075]
[1723924502952,1.89860877,59608.0,59607.0,0.0009075]
[1723924503168,1.91260877,59608.0,59607.0,0.0009075]
[1723924503387,1.74870877,59608.0,59607.0,0.0009075]
[1723924503593,1.74970877,59608.0,59607.0,0.0009075]
[1723924504005,1.73570877,59608.0,59607.0,0.0009075]
[1723924504211,1.74970877,59608.0,59607.0,0.0009075]
[1723924504416,1.75170877,59608.0,59607.0,0.0009075]
[1723924504618,1.75370877,59608.0,59607.0,0.0009075]
[1723924505684,1.74203256,59608.0,59607.0,0.0009075]
[1723924508390,1.74403256,59608.0,59607.0,0.0009075]
[1723924509675,1.74203256,59608.0,59607.0,0.0009075]
[1723924510300,1.74403256,59608.0,59607.0,0.0009075]
[1723924510956,1.74203256,59608.0,59607.0,0.0009075]
[1723924512116,1.74403256,59608.0,59607.0,0.0009075]
[1723924512940,1.74203256,59608.0,59607.0,0.0009075]
[1723924513356,1.77208244,59608.0,59607.0,0.0009075]
[1723924513557,1.76932923,59608.0,59607.0,0.0009075]
[1723924513763,1.77132923,59608.0,59607.0,0.0009075]
[1723924514172,2.02297323,59608.0,59607.0,0.0009075]
[1723924514588,2.02297323,59608.0,59599.0,0.0009064]
[1723924514589,0.281677,59600.0,59599.0,0.0009064]
[1723924514751,0.84964793,59600.0,59599.0,0.0009064]
[1723924514948,0.64005365,59600.0,59599.0,0.0009064]
[1723924515288,1.52392265,59600.0,59599.0,0.0009064]
[1723924515487,1.73620041,59600.0,59599.0,0.0009064]
[1723924515688,1.74920041,59600.0,59599.0,0.0009064]
[1723924516302,1.73620041,59600.0,59599.0,0.0009064]
[1723924516500,1.52392265,59600.0,59599.0,0.0009064]
[1723924516702,1.53792265,59600.0,59599.0,0.0009064]
[1723924516900,1.55192265,59600.0,59599.0,0.0009064]
[1723924517528,1.72347719,59600.0,59599.0,0.0009064]
[1723924517734,1.59770054,59600.0,59599.0,0.0009064]
[1723924518512,1.59470054,59600.0,59599.0,0.0009064]
[1723924518856,1.59770054,59600.0,59599.0,0.0009064]
[1723924519060,0.91096,59594.0,59593.0,0.0009064]
[1723924519264,1.24356,59594.0,59593.0,0.0009064]
[1723924519466,1.519263,59594.0,59593.0,0.0009064]
[1723924519669,1.64506588,59594.0,59593.0,0.0009064]
[1723924519872,1.645065,59594.0,59593.0,0.0009064]
[1723924520085,1.61990576,59594.0,59593.0,0.0009064]
[1723924520280,1.64090576,59594.0,59593.0,0.0009064]
[1723924520687,1.540263,59594.0,59593.0,0.0009064]
[1723924520890,1.87108035,59594.0,59593.0,0.0009064]
[1723924521096,1.666065,59594.0,59593.0,0.0009064]
[1723924521308,1.540263,59594.0,59593.0,0.0009064]
[1723924522448,1.91430713,59594.0,59593.0,0.0009064]
[1723924523070,1.91723119,59594.0,59593.0,0.0009064]
[1723924523254,2.04301885,59594.0,59593.0,0.0009064]
[1723924523480,1.91723119,59594.0,59593.0,0.0009064]
[1723924524530,1.91430713,59594.0,59593.0,0.0009064]
[1723924524762,1.92444345,59594.0,59593.0,0.0009064]
[1723924526750,1.83084345,59594.0,59593.0,0.0009064]
[1723924526980,1.92444345,59594.0,59593.0,0.0009064]
[1723924528673,1.75288891,59594.0,59593.0,0.0009064]
[1723924529777,1.68958891,59594.0,59593.0,0.0009064]
[1723924529957,1.61388891,59594.0,59593.0,0.0009064]
[1723924530390,1.72817792,59594.0,59593.0,0.0009064]
[1723924530598,1.70301539,59594.0,59593.0,0.0009064]
[1723924533408,1.7030061,59594.0,59593.0,0.0009064]
[1723924538230,1.70300658,59594.0,59593.0,0.0009064]
[1723924538403,1.69530191,59594.0,59593.0,0.0009064]
[1723924538961,1.51202988,59594.0,59593.0,0.0009064]
[1723924539157,1.69508222,59594.0,59593.0,0.0009064]
[1723924540331,1.72141732,59594.0,59593.0,0.0009064]
[1723924540713,1.722407,59594.0,59593.0,0.0009064]
[1723924542475,1.34607344,59594.0,59593.0,0.0009064]
[1723924542878,1.42155637,59594.0,59593.0,0.0009064]
[1723924543300,1.34607344,59594.0,59593.0,0.0647064]
[1723924543519,1.34607344,59594.0,59593.0,0.0009064]
[1723924543911,1.31973834,59594.0,59593.0,0.0009064]
[1723924545148,1.32266232,59594.0,59593.0,0.0009064]
[1723924545564,1.1386203,59594.0,59593.0,0.0009064]
[1723924546381,1.42189755,59594.0,59593.0,0.0009064]
[1723924550017,1.41897357,59594.0,59593.0,0.0009064]
[1723924552276,1.32537357,59594.0,59593.0,0.0009064]
[1723924552582,0.504072,59594.0,59593.0,0.1413064]
[1723924552797,0.597672,59594.0,59593.0,0.1413064]
[1723924552999,0.773857,59594.0,59593.0,0.1413064]
[1723924562543,0.680257,59594.0,59593.0,0.1413064]
[1723924562971,0.773857,59594.0,59593.0,0.1413064]
[1723924563773,0.765857,59594.0,59593.0,0.1413064]
[1723924564014,0.752857,59594.0,59593.0,0.1413064]
[1723924564215,0.753857,59594.0,59593.0,0.1413064]
[1723924564384,0.759857,59594.0,59593.0,0.1413064]
[1723924573218,0.759857,59594.0,59593.0,0.0647064]
[1723924574230,0.759857,59594.0,59593.0,0.0009064]
[1723924591039,0.91150216,59594.0,59593.0,0.0009064]
[1723924591241,0.835957,59594.0,59593.0,0.0009064]
[1723924591905,0.91153105,59594.0,59593.0,0.0009064]
[1723924592399,0.835957,59594.0,59593.0,0.0009064]
[1723924594314,0.9367224,59594.0,59593.0,0.0009064]
[1723924594717,0.91154685,59594.0,59593.0,0.0009064]
[1723924595327,0.9367224,59594.0,59593.0,0.0009064]
[1723924595687,0.93675322,59594.0,59593.0,0.0009064]
[1723924596076,1.18845622,59594.0,59593.0,0.0009064]
[1723924596686,1.27711675,59594.0,59593.0,0.0009064]
[1723924597562,1.27111675,59594.0,59593.0,0.0009064]
[1723924597736,1.28011675,59594.0,59593.0,0.0009064]
[1723924598121,1.27111675,59594.0,59593.0,0.0009064]
[1723924598375,1.15416,59594.0,59593.0,0.0009064]
[1723924598538,1.36631544,59594.0,59593.0,0.0009064]
[1723924598687,1.36931544,59594.0,59593.0,0.0009064]
[1723924599178,1.36631544,59594.0,59593.0,0.0009064]
[1723924599383,1.49233633,59594.0,59593.0,0.0009064]
[1723924599585,1.49733633,59594.0,59593.0,0.0009064]
[1723924600200,1.37131544,59594.0,59593.0,0.0009064]
[1723924600404,1.49733541,59594.0,59593.0,0.0009064]
[1723924601035,1.37131544,59594.0,59593.0,0.0009064]
[1723924601656,1.39672295,59594.0,59593.0,0.0009064]
[1723924602277,1.38172295,59594.0,59593.0,0.0009064]
[1723924602488,1.15616,59594.0,59593.0,0.0009064]
[1723924602700,1.37669399,59594.0,59593.0,0.0009064]
[1723924603100,1.36969399,59594.0,59593.0,0.0009064]
[1723924603342,1.37769399,59594.0,59593.0,0.0009064]
[1723924603559,1.50368683,59594.0,59593.0,0.0009064]
[1723924603761,1.49168683,59594.0,59593.0,0.0009064]
[1723924604189,1.50468683,59594.0,59593.0,0.0009064]
[1723924604404,1.44118683,59594.0,59593.0,0.0009064]
[1723924607008,1.13405284,59594.0,59593.0,0.0009064]
[1723924607210,0.80624984,59594.0,59593.0,0.0637064]
[1723924607437,0.680257,59594.0,59593.0,0.0637064]
[1723924608227,0.659257,59594.0,59593.0,0.0637064]
[1723924608430,0.662257,59594.0,59593.0,0.0637064]
[1723924608623,0.671257,59594.0,59593.0,0.0637064]
[1723924612011,0.419554,59594.0,59593.0,0.0637064]
[1723924614293,0.671257,59594.0,59593.0,0.0637064]
[1723924614444,0.419554,59594.0,59593.0,0.0637064]
[1723924614645,0.671257,59594.0,59593.0,0.0637064]
[1723924616330,0.419554,59594.0,59593.0,0.0637064]
[1723924616886,0.671257,59594.0,59593.0,0.0637064]
[1723924618698,0.671257,59594.0,59593.0,0.0009064]
[1723924621541,0.74684237,59594.0,59593.0,0.0009064]
[1723924621730,0.671257,59594.0,59593.0,0.0009064]
[1723924627536,0.764857,59594.0,59593.0,0.0009064]
[1723924629171,0.513154,59594.0,59593.0,0.0009064]
[1723924629514,0.764857,59594.0,59593.0,0.0009064]
[1723924630328,0.84044088,59594.0,59593.0,0.0009064]
[1723924630524,0.764857,59594.0,59593.0,0.0009064]
[1723924630759,0.84044088,59594.0,59593.0,0.0009064]
[1723924631173,0.58873788,59594.0,59593.0,0.0009064]
[1723924631731,0.84044088,59594.0,59593.0,0.0009064]
[1723924634202,0.764857,59594.0,59593.0,0.0009064]
[1723924645698,0.908757,59594.0,59593.0,0.0009064]
[1723924646454,0.98435538,59594.0,59593.0,0.0009064]
[1723924646661,0.98435954,59594.0,59593.0,0.0009064]
[1723924647081,0.908757,59594.0,59593.0,0.0009064]
[1723924647323,0.98435944,59594.0,59593.0,0.0009064]
[1723924648350,0.908757,59594.0,59593.0,0.0009064]
[1723924650432,1.00955485,59594.0,59593.0,0.0009064]
[1723924652313,1.26125785,59594.0,59593.0,0.0009064]
[1723924652482,1.16046,59594.0,59593.0,0.0009064]
[1723924653135,1.28652161,59594.0,59593.0,0.0009064]
[1723924653294,1.16046,59594.0,59593.0,0.0009064]
[1723924653494,1.28653334,59594.0,59593.0,0.0009064]
[1723924658693,1.16046,59594.0,59593.0,0.0009064]
[1723924658882,1.28653334,59594.0,59593.0,0.0009064]
[1723924660541,1.16046,59594.0,59593.0,0.0009064]
[1723924660787,1.26128961,59594.0,59593.0,0.0009064]
[1723924661453,1.20038961,59594.0,59593.0,0.0009064]
[1723924661663,0.52038361,59594.0,59593.0,0.0624064]
[1723924662289,0.419554,59594.0,59593.0,0.0624064]
[1723924662780,0.416554,59594.0,59593.0,0.0624064]
[1723924662969,0.407554,59594.0,59593.0,0.0624064]
[1723924663188,0.661257,59594.0,59593.0,0.0624064]
[1723924663398,0.417554,59594.0,59593.0,0.0624064]
[1723924663591,0.415554,59594.0,59593.0,0.0624064]
[1723924664607,0.407554,59594.0,59593.0,0.0624064]
[1723924664816,0.413554,59594.0,59593.0,0.0624064]
[1723924665993,0.414554,59594.0,59593.0,0.0624064]
[1723924670536,0.666257,59594.0,59593.0,0.0624064]
[1723924674135,0.666257,59594.0,59593.0,0.0009064]
[1723924674355,0.806557,59594.0,59593.0,0.0009064]
[1723924675876,0.90736648,59594.0,59593.0,0.0009064]
[1723924676275,1.15906948,59594.0,59593.0,0.0009064]
[1723924678387,1.13386371,59594.0,59593.0,0.0009064]
[1723924680215,1.13468871,59594.0,59593.0,0.0009064]
[1723924680817,0.81878571,59594.0,59593.0,0.0009064]
[1723924680998,0.83628571,59594.0,59593.0,0.0009064]
[1723924682486,0.8355605,59594.0,59593.0,0.0009064]
[1723924685593,0.75995679,59594.0,59593.0,0.0009064]
[1723924704992,0.66635679,59594.0,59593.0,0.0009064]
[1723924705397,0.007825,59594.0,59593.0,0.3997134]
[1723924705627,0.007825,59594.0,59593.0,0.5255664]
[1723924705838,0.007825,59594.0,59593.0,0.7772734]
[1723924705983,0.007825,59594.0,59593.0,0.79850804]
[1723924706374,0.000825,59594.0,59593.0,0.5255664]
[1723924706556,0.006825,59594.0,59593.0,0.5255664]
[1723924707178,0.007825,59594.0,59593.0,0.5275664]
[1723924707689,0.008825,59594.0,59593.0,0.5275664]
[1723924708108,0.007825,59594.0,59593.0,0.5275664]
[1723924708311,0.008825,59594.0,59593.0,0.5285664]
[1723924711369,0.008825,59594.0,59593.0,0.7802734]
[1723924715691,0.008825,59594.0,59593.0,0.6978734]
[1723924717135,0.008825,59594.0,59593.0,0.4461664]
[1723924719089,0.008825,59594.0,59593.0,0.0039064]
[1723924719090,0.038825,59594.0,59593.0,0.0039064]
[1723924719346,0.244776,59594.0,59593.0,0.0039064]
[1723924719581,0.164676,59594.0,59593.0,0.0039064]
[1723924720209,0.163676,59594.0,59593.0,0.0029064]
[1723924720535,0.163676,59594.0,59593.0,0.0019064]
[1723924720536,0.157676,59594.0,59593.0,0.0019064]
[1723924720684,0.157676,59594.0,59593.0,0.0029064]
[1723924720919,0.156676,59594.0,59593.0,0.0019064]
[1723924721289,0.157676,59594.0,59593.0,0.0029064]
[1723924721496,0.409379,59594.0,59593.0,0.0029064]
[1723924726690,0.548979,59594.0,59593.0,0.0029064]
[1723924727558,0.547979,59594.0,59593.0,0.0009064]
[1723924727773,0.549979,59594.0,59593.0,0.0019064]
[1723924729280,0.547979,59594.0,59593.0,0.0019064]
[1723924729499,0.549979,59594.0,59593.0,0.0009064]
[1723924729701,0.549979,59594.0,59593.0,0.0019064]
[1723924733535,0.236276,59594.0,59593.0,0.0019064]
[1723924733741,0.487979,59594.0,59593.0,0.0019064]
[1723924734353,0.410379,59594.0,59593.0,0.0019064]
[1723924736251,0.032825,59594.0,59593.0,0.0019064]
[1723924736428,0.158676,59594.0,59593.0,0.0019064]
[1723924736890,0.158676,59594.0,59593.0,0.1434064]
[1723924737390,0.158676,59594.0,59593.0,0.0019064]
[1723924737391,0.410379,59594.0,59593.0,0.0019064]
[1723924737596,0.487979,59594.0,59593.0,0.0019064]
[1723924738464,0.110425,59594.0,59593.0,0.1277594]
[1723924738693,0.110425,59594.0,59593.0,0.0019064]
[1723924738694,0.032825,59594.0,59593.0,0.0019064]
[1723924738851,0.158676,59594.0,59593.0,0.0019064]
[1723924744111,0.235876,59594.0,59593.0,0.0019064]
[1723924746439,0.487579,59594.0,59593.0,0.0019064]
[1723924747603,0.548779,59594.0,59593.0,0.0019064]
[1723924747807,0.800482,59594.0,59593.0,0.0019064]
[1723924748043,1.052185,59594.0,59593.0,0.0019064]
[1723924749246,1.1277392,59594.0,59593.0,0.0019064]
[1723924749495,1.052185,59594.0,59593.0,0.0019064]
[1723924749697,1.15290573,59594.0,59593.0,0.0019064]
[1723924750210,1.052185,59594.0,59593.0,0.0019064]
[1723924751183,1.12771762,59594.0,59593.0,0.0019064]
[1723924754150,1.052185,59594.0,59593.0,0.0019064]
[1723924756200,1.12771762,59594.0,59593.0,0.0019064]
[1723924757796,1.12571762,59594.0,59593.0,0.0019064]
[1723924758018,1.12571762,59594.0,59593.0,0.0009064]
[1723924758487,1.13171762,59594.0,59593.0,0.0009064]
[1723924758724,1.40860873,59594.0,59593.0,0.0009064]
[1723924759403,1.41960873,59594.0,59593.0,0.0009064]
[1723924760177,1.39436607,59594.0,59593.0,0.0009064]
[1723924763181,1.39436598,59594.0,59593.0,0.0009064]
[1723924772581,0.425379,59594.0,59593.0,0.0009064]
[1723924772772,0.425379,59594.0,59593.0,0.0818064]
[1723924773177,0.425379,59594.0,59593.0,0.1453064]
[1723924774377,0.419379,59594.0,59593.0,0.1453064]
[1723924774985,0.408379,59594.0,59593.0,0.1453064]
[1723924775394,0.413379,59594.0,59593.0,0.1453064]
[1723924775769,0.161676,59594.0,59593.0,0.1453064]
[1723924776226,0.413379,59594.0,59593.0,0.1453064]
[1723924776430,0.506979,59594.0,59593.0,0.0644064]
[1723924778055,0.255276,59594.0,59593.0,0.0644064]
[1723924778607,0.161676,59594.0,59593.0,0.0644064]
[1723924789470,0.035825,59594.0,59593.0,0.0644064]
[1723924789687,0.035825,59594.0,59593.0,0.5214664]
[1723924789863,0.005825,59594.0,59593.0,0.7731734]
[1723924790864,0.006825,59594.0,59593.0,0.7751734]
[1723924791459,0.001825,59594.0,59593.0,0.5234664]
[1723924792092,0.000825,59594.0,59593.0,0.5214664]
[1723924792475,0.001825,59594.0,59593.0,0.5264664]
[1723924792696,0.001825,59594.0,59593.0,0.5234664]
[1723924793073,0.001825,59594.0,59593.0,0.5264664]
[1723924796537,0.001825,59594.0,59593.0,0.7781734]
[1723924802077,0.001825,59594.0,59593.0,1.0298804]
[1723924802254,0.001825,59594.0,59593.0,1.14471782]
[1723924805411,0.001825,59594.0,59593.0,1.14771782]
[1723924805836,0.001825,59594.0,59593.0,1.31927236]
[1723924806072,0.001825,59594.0,59593.0,1.67097936]
[1723924806245,0.001825,59594.0,59593.0,1.67297936]
[1723924806401,0.001825,59594.0,59593.0,2.08424388]
[1723924806602,0.001825,59594.0,59593.0,2.15955885]
[1723924806861,0.001825,59594.0,59593.0,2.18172848]
[1723924807021,0.001825,59594.0,59593.0,2.10424388]
[1723924807218,0.001825,59594.0,59593.0,2.10724388]
[1723924807419,0.001825,59594.0,59593.0,2.20462561]
[1723924807623,0.000825,59594.0,59593.0,2.20262561]
[1723924807834,0.001825,59594.0,59593.0,2.20962561]
[1723924808073,0.001825,59594.0,59593.0,2.08902561]
[1723924808272,0.001825,59594.0,59593.0,1.70069315]
[1723924808406,0.000825,59594.0,59593.0,1.74388239]
[1723924808608,0.000825,59594.0,59593.0,1.69369315]
[1723924808823,0.001825,59594.0,59593.0,1.70269315]
[1723924809018,0.002825,59594.0,59593.0,1.75988196]
[1723924809234,0.001825,59594.0,59593.0,1.75287526]
[1723924809432,0.001825,59594.0,59593.0,1.75487519]
[1723924809725,0.002825,59594.0,59593.0,1.76487211]
[1723924809875,0.001825,59594.0,59593.0,1.70569007]
[1723924810079,0.001825,59594.0,59593.0,1.75585879]
[1723924810281,0.001825,59594.0,59593.0,1.70491062]
[1723924810485,0.001825,59594.0,59593.0,1.70768309]
[1723924810889,0.001825,59594.0,59593.0,2.17825466]
[1723924811295,0.002825,59594.0,59593.0,2.18520345]
[1723924811908,0.002825,59594.0,59593.0,2.18520162]
[1723924812063,0.002825,59594.0,59593.0,2.18720162]
[1723924813978,0.002825,59594.0,59593.0,2.43890862]
[1723924814188,0.002825,59594.0,59593.0,2.43890021]
[1723924814393,0.002825,59594.0,59593.0,2.36366951]
[1723924814595,0.002825,59594.0,59593.0,2.31272992]
[1723924814798,0.002825,59594.0,59593.0,2.36366996]
[1723924816191,0.002825,59594.0,59593.0,2.46398669]
[1723924817971,1e-08,59594.0,59593.0,2.46398669]
[1723924818173,1e-08,59594.0,59593.0,2.31272992]
[1723924818352,1e-08,59594.0,59593.0,2.37290531]
[1723924818795,1e-08,59594.0,59593.0,2.49830123]
[1723924820209,1e-08,59594.0,59593.0,2.37290531]
[1723924820877,1e-08,59594.0,59593.0,2.37289473]
[1723924822391,0.00082501,59594.0,59593.0,2.47319077]
[1723924826167,0.00082501,59594.0,59593.0,2.41301527]
[1723924826445,0.00082501,59594.0,59593.0,2.47318879]
[1723924826924,0.00082501,59594.0,59593.0,2.47319291]
[1723924827586,0.00082501,59594.0,59593.0,2.46395733]
[1723924827788,0.00082501,59594.0,59593.0,2.00062664]
[1723924828022,0.00082501,59594.0,59593.0,2.47319567]
[1723924829278,0.00082501,59594.0,59593.0,2.43167071]
[1723924830276,0.00082501,59594.0,59593.0,2.56971521]
[1723924830504,0.00082501,59594.0,59593.0,2.60870433]
[1723924831307,0.00082501,59594.0,59593.0,2.73407588]
[1723924832276,0.00082501,59594.0,59593.0,2.67528699]
[1723924832881,0.000825,59599.0,59598.0,1.278987]
[1723924833078,0.000825,59599.0,59598.0,1.7385464]
[1723924833282,0.000825,59599.0,59598.0,1.67467466]
[1723924833481,0.000825,59599.0,59598.0,1.76827466]
[1723924834208,0.001825,59599.0,59598.0,1.77827466]
[1723924834738,0.001825,59599.0,59598.0,1.63287466]
[1723924834928,0.001825,59599.0,59598.0,1.63487466]
[1723924835177,0.001825,59599.0,59598.0,1.584698]
[1723924835339,0.002825,59599.0,59598.0,1.60193651]
[1723924835559,0.002825,59599.0,59598.0,1.59993651]
[1723924835747,0.002825,59599.0,59598.0,1.6120205]
[1723924835943,0.002825,59599.0,59598.0,1.6100205]
[1723924836904,0.002825,59599.0,59598.0,1.5164205]
[1723924837131,0.002825,59599.0,59598.0,1.65921968]
[1723924837251,0.002825,59599.0,59598.0,1.6090205]
[1723924837453,0.002825,59599.0,59598.0,1.6120205]
[1723924837695,0.002825,59599.0,59598.0,1.57693651]
[1723924837869,0.143725,59599.0,59598.0,1.62714007]
[1723924838249,0.143725,59599.0,59598.0,1.61790535]
[1723924838497,0.143725,59599.0,59598.0,1.62714432]
[1723924838713,0.143725,59599.0,59598.0,0.19480751]
[1723924838866,0.143725,59599.0,59598.0,0.16507708]
[1723924839067,0.143725,59599.0,59598.0,0.41676308]
[1723924839699,0.141725,59599.0,59598.0,0.39876308]
[1723924839923,0.141725,59599.0,59598.0,0.40476308]
[1723924839924,0.142725,59599.0,59598.0,0.40476308]
[1723924840127,0.143725,59599.0,59598.0,0.41376308]
[1723924840463,0.142725,59599.0,59598.0,0.40476308]
[1723924840966,0.142725,59599.0,59598.0,0.15307708]
[1723924841215,0.142725,59599.0,59598.0,0.14707708]
[1723924841216,0.141725,59599.0,59598.0,0.14707708]
[1723924841553,0.269566,59599.0,59598.0,0.03623408]
[1723924841664,0.77293,59599.0,59598.0,0.015]
[1723924842077,1.024612,59599.0,59598.0,0.015]
[1723924842300,0.77293,59599.0,59598.0,0.015]
[1723924843251,0.521248,59599.0,59598.0,0.015]
[1723924846711,0.269566,59599.0,59598.0,0.015]
[1723924847143,0.521248,59599.0,59598.0,0.015]
[1723924848374,0.269566,59599.0,59598.0,0.015]
[1723924849018,0.143725,59599.0,59598.0,0.015]
[1723924849224,0.002825,59599.0,59598.0,0.737815]
[1723924849433,0.002825,59599.0,59598.0,0.837815]
[1723924850636,0.002825,59599.0,59598.0,1.15126954]
[1723924851045,0.002825,59599.0,59598.0,1.40295554]
[1723924851245,0.002825,59599.0,59598.0,1.32185554]
[1723924853706,0.002825,59599.0,59598.0,1.26105554]
[1723924854051,0.142625,59599.0,59598.0,0.91576954]
[1723924854393,0.142625,59599.0,59598.0,1.16745554]
[1723924855056,0.079225,59599.0,59598.0,1.26105554]
[1723924855291,0.002825,59599.0,59598.0,1.26105554]
[1723924856290,0.002825,59599.0,59598.0,1.03060448]
[1723924856619,0.002825,59599.0,59598.0,1.28229048]
[1723924856815,0.002825,59599.0,59598.0,0.76544994]
[1723924858132,0.002825,59599.0,59598.0,0.85904994]
[1723924860481,0.002825,59599.0,59598.0,1.09140448]
[1723924860679,0.002825,59599.0,59598.0,1.34309048]
[1723924861219,0.002825,59599.0,59598.0,1.3460858]
[1723924861474,0.002825,59599.0,59598.0,1.3440858]
[1723924861878,0.002825,59599.0,59598.0,1.3430858]
[1723924862027,0.002825,59599.0,59598.0,1.2822858]
[1723924864339,0.080925,59599.0,59598.0,1.2822858]
[1723924867368,0.002825,59599.0,59598.0,1.2822858]
[1723924868547,0.002825,59599.0,59598.0,1.3668858]
[1723924868723,0.002825,59599.0,59598.0,1.40645554]
[1723924868933,0.002825,59599.0,59598.0,1.42768312]
[1723924869338,0.002825,59599.0,59598.0,1.42768311]
[1723924869517,0.001825,59599.0,59598.0,1.41868311]
[1723924869930,0.000825,59599.0,59598.0,1.41268311]
[1723924870135,0.001825,59599.0,59598.0,1.42068311]
[1723924870579,0.000825,59599.0,59598.0,1.41268311]
[1723924870778,0.000825,59599.0,59598.0,1.67236911]
[1723924870954,0.001825,59599.0,59598.0,1.42068311]
[1723924871260,0.002825,59599.0,59598.0,1.43168311]
[1723924871469,0.002825,59599.0,59598.0,1.44562738]
[1723924871672,0.001825,59599.0,59598.0,1.43462738]
[1723924871876,0.002825,59599.0,59598.0,1.44562738]
[1723924872130,0.002825,59599.0,59598.0,1.44162738]
[1723924872790,0.002825,59599.0,59598.0,1.49184611]
[1723924872953,0.002825,59599.0,59598.0,1.77053211]
[1723924873154,0.002825,59599.0,59598.0,1.71831338]
[1723924873384,0.002825,59599.0,59598.0,1.79365685]
[1723924873797,0.002825,59599.0,59598.0,1.71831082]
[1723924874017,0.002825,59599.0,59598.0,1.45468055]
[1723924874219,0.002825,59599.0,59598.0,1.37508055]
[1723924875781,0.002825,59599.0,59598.0,1.62676655]
[1723924876485,0.002825,59599.0,59598.0,1.62876655]
[1723924876660,0.002825,59599.0,59598.0,1.37708055]
[1723924876861,0.002825,59599.0,59598.0,1.37508055]
[1723924877308,0.002825,59599.0,59598.0,1.35385554]
[1723924877532,0.002825,59599.0,59598.0,1.37508079]
[1723924877828,0.002825,59599.0,59598.0,1.62676679]
[1723924879248,0.002825,59599.0,59598.0,1.65649058]
[1723924880281,0.002825,59599.0,59598.0,1.48015965]
[1723924880643,0.002825,59599.0,59598.0,1.40480458]
[1723924881289,0.002825,59599.0,59598.0,1.42921061]
[1723924881462,0.002825,59599.0,59598.0,1.73183177]
[1723924881853,0.002825,59599.0,59598.0,1.41534577]
[1723924882677,0.067925,59599.0,59598.0,0.87450523]
[1723924882904,0.148625,59599.0,59598.0,0.76943447]
[1723924883432,0.148625,59599.0,59598.0,0.04021947]
[1723924883643,0.148625,59599.0,59598.0,0.41774847]
[1723924884741,0.148625,59599.0,59598.0,0.40674847]
[1723924884742,0.147625,59599.0,59598.0,0.40674847]
[1723924885145,0.147625,59599.0,59598.0,0.41674847]
[1723924885146,0.148625,59599.0,59598.0,0.41674847]
[1723924885350,0.147625,59599.0,59598.0,0.40674847]
[1723924885547,0.146625,59599.0,59598.0,0.39874847]
[1723924885774,0.147625,59599.0,59598.0,0.40574847]
[1723924885973,0.147625,59599.0,59598.0,0.65743447]
[1723924886138,0.148625,59599.0,59598.0,0.67143447]
[1723924887507,0.148625,59599.0,59598.0,0.65743447]
[1723924887508,0.147625,59599.0,59598.0,0.65743447]
[1723924888690,0.148625,59599.0,59598.0,0.66643447]
[1723924893255,0.148625,59599.0,59598.0,0.71671146]
[1723924894853,0.148625,59599.0,59598.0,0.91812047]
[1723924895044,0.002825,59599.0,59598.0,1.63739927]
[1723924895413,0.002825,59599.0,59598.0,1.56198379]
[1723924895878,0.002825,59599.0,59598.0,1.81466979]
[1723924896078,0.002825,59599.0,59598.0,1.94236227]
[1723924896302,0.002825,59599.0,59598.0,1.94036227]
[1723924896509,0.002825,59599.0,59598.0,1.94236227]
[1723924897129,0.001825,59599.0,59598.0,1.93336227]
[1723924897328,0.001825,59599.0,59598.0,1.9121428]
[1723924897479,0.001825,59599.0,59598.0,1.94936042]
[1723924897889,0.001825,59599.0,59598.0,1.94936034]
[1723924898048,0.000825,59599.0,59598.0,1.94236034]
[1723924898251,0.000825,59599.0,59598.0,1.93836034]
[1723924898473,0.001825,59599.0,59598.0,1.95236034]
[1723924898684,0.001825,59599.0,59598.0,1.95636034]
[1723924899291,0.001825,59599.0,59598.0,1.95236034]
[1723924900347,0.001825,59599.0,59598.0,1.95243742]
[1723924900538,0.001825,59599.0,59598.0,1.95443742]
[1723924901449,0.001825,59599.0,59598.0,1.95643742]
[1723924904789,0.001825,59599.0,59598.0,1.95645364]
[1723924907187,0.149225,59599.0,59598.0,1.69976764]
[1723924907388,0.149225,59599.0,59598.0,1.57397251]
[1723924907591,0.149225,59599.0,59598.0,1.67461721]
[1723924908008,0.084125,59599.0,59598.0,1.67461721]
[1723924908361,0.084125,59599.0,59598.0,1.67561721]
[1723924908569,0.084125,59599.0,59598.0,1.67461721]
[1723924908975,0.084125,59599.0,59598.0,1.69976853]
[1723924909376,0.084125,59599.0,59598.0,1.69976885]
[1723924909673,0.084125,59599.0,59598.0,1.70276885]
[1723924909674,0.001825,59599.0,59598.0,1.70276885]
[1723924909901,0.001825,59599.0,59598.0,1.57697457]
[1723924910473,0.001825,59599.0,59598.0,1.60668075]
[1723924911303,0.001825,59599.0,59598.0,1.57697457]
[1723924911605,0.001825,59599.0,59598.0,1.8563629]
[1723924913195,0.001825,59599.0,59598.0,1.82666057]
[1723924913775,0.001825,59599.0,59598.0,1.82665057]
[1723924914402,0.001825,59599.0,59598.0,1.85635461]
[1723924914927,0.001825,59599.0,59598.0,1.85535461]
[1723924915347,0.001825,59599.0,59598.0,1.85635461]
[1723924916695,0.001825,59599.0,59598.0,1.85535461]
[1723924918313,0.001825,59599.0,59598.0,1.85635461]
[1723924918927,0.001825,59599.0,59598.0,1.86035461]
[1723924920951,0.001825,59599.0,59598.0,1.95395461]
[1723924921396,0.001825,59599.0,59598.0,1.95395078]
[1723924924176,0.001825,59599.0,59598.0,2.01675078]
[1723924924513,0.001825,59599.0,59598.0,1.95395078]
[1723924925851,0.001825,59599.0,59598.0,1.94995078]
[1723924926055,0.001825,59599.0,59598.0,1.95195078]
[1723924926463,0.001825,59599.0,59598.0,1.94995078]
[1723924928048,0.001825,59599.0,59598.0,1.94994844]
[1723924928721,0.001825,59599.0,59598.0,1.95194844]
[1723924929177,0.001825,59599.0,59598.0,1.95394844]
[1723924932007,0.001825,59599.0,59598.0,1.94994844]
[1723924932202,0.001825,59599.0,59598.0,1.92874588]
[1723924932454,0.001825,59599.0,59598.0,1.94996393]
[1723924932662,0.001825,59599.0,59598.0,1.89903214]
[1723924932820,0.001825,59599.0,59598.0,1.94996429]
[1723924932996,0.001825,59599.0,59598.0,1.95196429]
[1723924934571,0.001825,59599.0,59598.0,1.94996429]
[1723924936149,0.001825,59599.0,59598.0,1.95196429]
[1723924936423,0.001825,59599.0,59598.0,1.95196334]
[1723924936626,0.00168035,59599.0,59598.0,1.95196334]
[1723924937910,0.00168035,59599.0,59598.0,1.95196036]
[1723924938155,0.00168035,59599.0,59598.0,1.95396036]